bitfinex-derivatives/quotes_SOLF0:USTF0_20260115
["timestamp","ask_amount","ask_price","bid_price","bid_amount"]
[1768483665378,0.04886698,145.27,145.22,19.47697982]
[1768483666284,0.04886698,145.27,145.23,13.27767982]
[1768483667386,12.66886984,145.29,145.24,6.24573236]
[1768483668386,0.04737875,145.28,145.24,6.24573236]
[1768483668583,12.66886984,145.32,145.26,19.47517982]
[1768483668890,5.0632117,145.31,145.26,19.47517982]
[1768483669086,12.66886984,145.32,145.26,19.47517982]
[1768483669386,17.73265527,145.31,145.26,19.47517982]
[1768483669588,0.04694997,145.3,145.27,0.04857089]
[1768483671083,12.63617384,145.3,145.24,13.27767982]
[1768483672189,12.63617384,145.3,145.26,0.04474943]
[1768483675284,0.04694997,145.3,145.26,0.04474943]
[1768483677488,12.63617384,145.3,145.23,13.04306236]
[1768483677692,12.58922387,145.3,145.23,13.04306236]
[1768483678589,0.04530703,145.28,145.23,13.04306236]
[1768483681498,12.6345309,145.28,145.21,13.04306236]
[1768483681804,14.75888323,145.28,145.21,13.04306236]
[1768483682106,12.58922387,145.27,145.21,13.04306236]
[1768483683002,14.7135762,145.26,145.19,13.04306236]
[1768483683203,12.58922387,145.25,145.19,13.04306236]
[1768483683604,12.58922387,145.25,145.17,213.86651867]
[1768483683802,12.58922387,145.23,145.17,213.86651867]
[1768483684400,0.04846694,145.21,145.19,0.04586279]
[1768483684592,2.12435233,145.25,145.17,213.86651867]
[1768483684907,2.12435233,145.25,145.2,0.04397695]
[1768483685796,177.7446,145.3,145.2,0.04397695]
[1768483686004,2.12435233,145.26,145.17,213.86651867]
[1768483686704,5.05946084,145.25,145.17,215.990871]
[1768483687009,2.12435233,145.26,145.17,215.990871]
[1768483687201,2.12435233,145.26,145.2,0.04660825]
[1768483687403,0.04436815,145.23,145.2,0.04660825]
[1768483688804,3.32222346,145.29,145.2,0.04660825]
[1768483689007,5.05586511,145.28,145.17,217.18874213]
[1768483689203,5.05586511,145.27,145.17,217.18874213]
[1768483689504,84.70222346,145.29,145.17,217.18874213]
[1768483689709,5.05484813,145.28,145.17,217.18874213]
[1768483690006,0.05099525,145.24,145.21,0.04699329]
[1768483694312,6.1968,145.28,145.21,0.04699329]
[1768483694913,6.1973,145.27,145.21,0.04699329]
[1768483695212,6.1973,145.27,145.19,3.32222346]
[1768483695511,0.0517328,145.25,145.19,3.32222346]
[1768483695710,0.0517328,145.25,145.22,0.04529274]
[1768483697014,0.0517328,145.25,145.17,87.70222346]
[1768483697916,6.2498328,145.25,145.17,87.70222346]
[1768483698214,6.2498328,145.25,145.2,0.05033973]
[1768483698711,6.1985,145.24,145.2,0.05033973]
[1768483698915,0.0517328,145.25,145.17,6.32222346]
[1768483699114,96.4048,145.27,145.16,81.38]
[1768483699513,6.199,145.23,145.16,81.38]
[1768483700012,0.0443405,145.21,145.16,81.38]
[1768483701918,3.32222346,145.28,145.16,81.38]
[1768483703019,0.04473035,145.23,145.21,0.04498872]
[1768483703210,0.04379583,145.23,145.21,0.04498872]
[1768483704018,0.04379583,145.23,145.16,81.38]
[1768483709019,0.04379583,145.23,145.16,87.5815]
[1768483711017,0.04379583,145.23,145.16,81.38]
[1768483714509,0.04379583,145.23,145.17,3.32222346]
[1768483715323,241.89938211,145.32,145.19,0.05271332]
[1768483715525,8.37607558,145.31,145.17,6.32222346]
[1768483715715,5.05385212,145.3,145.17,6.32222346]
[1768483715916,5.05385212,145.29,145.17,6.32222346]
[1768483716217,3.32222346,145.31,145.17,6.32222346]
[1768483716524,0.04654004,145.25,145.17,6.32222346]
[1768483719423,0.04654004,145.25,145.19,3.32222346]
[1768483720823,6.24464004,145.25,145.19,3.32222346]
[1768483721218,6.24464004,145.25,145.17,3.0]
[1768483721420,0.04654004,145.25,145.21,0.04933195]
[1768483722827,6.1989,145.23,145.16,6.32222346]
[1768483723918,0.04599516,145.21,145.18,0.04853474]
[1768483724119,6.1968,145.28,145.18,0.04684017]
[1768483724323,5.06433735,145.27,145.16,6.32222346]
[1768483724518,6.1968,145.28,145.16,6.32222346]
[1768483724723,5.06433735,145.27,145.16,6.32222346]
[1768483725025,6.1968,145.28,145.16,6.32222346]
[1768483725214,5.06433418,145.27,145.16,6.32222346]
[1768483725415,0.04364273,145.23,145.16,6.32222346]
[1768483727822,0.04364273,145.23,145.18,0.04535517]
[1768483734633,0.04364273,145.23,145.19,3.32222346]
[1768483735736,0.04364273,145.23,145.18,3.36757863]
[1768483743738,0.04364273,145.23,145.18,0.04535517]
[1768483745141,6.198,145.25,145.19,3.32222346]
[1768483746038,96.3913,145.29,145.19,3.32222346]
[1768483746240,5.07522898,145.28,145.19,3.32222346]
[1768483746545,0.05270519,145.25,145.23,0.04663976]
[1768483747545,6.25080519,145.25,145.19,3.32222346]
[1768483748139,6.1987,145.24,145.19,3.32222346]
[1768483748644,6.1987,145.24,145.2,0.04554661]
[1768483748947,0.05270519,145.25,145.2,0.04554661]
[1768483749347,0.05270519,145.25,145.21,2.12532526]
[1768483751150,0.05270519,145.25,145.2,0.04554661]
[1768483751338,0.05270519,145.25,145.21,2.12532526]
[1768483753250,0.05270519,145.25,145.2,0.04554661]
[1768483753451,0.05270519,145.25,145.21,2.12532526]
[1768483753651,0.05270519,145.25,145.2,0.04554661]
[1768483753842,0.05270519,145.25,145.21,2.12532526]
[1768483756443,8.32082526,145.31,145.21,2.12532526]
[1768483756648,5.07450259,145.3,145.21,2.12532526]
[1768483756853,5.07450259,145.29,145.21,2.12532526]
[1768483757052,5.07450259,145.28,145.21,2.12532526]
[1768483757256,5.07450259,145.27,145.21,2.12532526]
[1768483757457,0.04428783,145.26,145.21,2.12532526]
[1768483763464,0.04428783,145.26,145.18,3.0]
[1768483763758,0.04428783,145.26,145.22,2.12532526]
[1768483765157,0.04428783,145.26,145.18,3.0]
[1768483765357,0.04428783,145.26,145.21,2.12532526]
[1768483765756,0.04428783,145.26,145.18,3.0]
[1768483765956,0.04428783,145.26,145.21,2.12532526]
[1768483766159,2.12532526,145.29,145.21,2.12532526]
[1768483766363,0.0526043,145.25,145.21,2.12532526]
[1768483769669,2.12532526,145.3,145.22,0.05226322]
[1768483769966,5.06958532,145.29,145.21,2.12532526]
[1768483770168,5.06958532,145.28,145.21,2.12532526]
[1768483770370,2.12532526,145.3,145.21,2.12532526]
[1768483770371,5.06958532,145.27,145.21,2.12532526]
[1768483770571,2.12532526,145.3,145.21,2.12532526]
[1768483770866,0.04361507,145.25,145.23,0.04586797]
[1768483771067,2.12532526,145.3,145.23,0.04586797]
[1768483771267,5.06935142,145.29,145.23,0.04586797]
[1768483771474,5.11605396,145.28,145.23,0.04586797]
[1768483771768,5.06935142,145.27,145.23,0.04586797]
[1768483771970,0.04670254,145.28,145.23,0.04586797]
[1768483772168,5.06935142,145.27,145.23,0.04586797]
[1768483772369,0.04670254,145.28,145.23,0.04586797]
[1768483772567,5.06926724,145.27,145.23,0.04586797]
[1768483772866,0.04670254,145.28,145.23,0.04586797]
[1768483773067,5.06926724,145.27,145.23,0.04586797]
[1768483773256,0.04670254,145.28,145.23,0.04586797]
[1768483773463,5.0694644,145.27,145.23,0.04586797]
[1768483773657,0.04670254,145.28,145.23,0.04586797]
[1768483773965,5.06945654,145.27,145.23,0.04586797]
[1768483774165,0.04670254,145.28,145.23,0.04586797]
[1768483774367,5.0696841,145.27,145.23,0.04586797]
[1768483774565,0.04670254,145.28,145.23,0.04586797]
[1768483774866,5.06968712,145.27,145.23,6.24466797]
[1768483775063,0.04670254,145.28,145.23,6.24466797]
[1768483775372,5.06969956,145.27,145.23,6.24466797]
[1768483775570,0.04670254,145.28,145.23,6.24466797]
[1768483775769,5.07019313,145.27,145.23,6.24466797]
[1768483776072,0.04670254,145.28,145.23,6.24466797]
[1768483776373,5.07079975,145.27,145.23,6.24466797]
[1768483776569,0.04670254,145.28,145.23,6.24466797]
[1768483776871,5.07079975,145.27,145.24,6.1984]
[1768483777065,0.04670254,145.28,145.24,6.1984]
[1768483777267,5.07153551,145.27,145.24,6.1984]
[1768483777565,0.04670254,145.28,145.24,6.1984]
[1768483777762,5.07152765,145.27,145.24,6.1984]
[1768483777968,0.04670254,145.28,145.24,6.1984]
[1768483778267,5.07152765,145.27,145.24,6.1984]
[1768483778564,0.04670254,145.28,145.24,6.1984]
[1768483778764,5.07237361,145.27,145.24,6.1984]
[1768483778970,0.04670254,145.28,145.24,6.1984]
[1768483779168,5.07237361,145.27,145.24,6.1984]
[1768483779371,0.04670254,145.28,145.24,6.1984]
[1768483779571,5.0734227,145.27,145.24,6.1984]
[1768483779772,0.04670254,145.28,145.24,6.1984]
[1768483780076,5.07342905,145.27,145.24,6.1984]
[1768483780273,0.04670254,145.28,145.24,6.1984]
[1768483780473,5.07351471,145.27,145.24,6.1984]
[1768483780770,0.04670254,145.28,145.24,6.1984]
[1768483780967,5.07351471,145.27,145.24,6.1984]
[1768483781172,0.04670254,145.28,145.24,6.1984]
[1768483781365,5.07362504,145.27,145.24,6.1984]
[1768483781567,0.04670254,145.28,145.24,6.1984]
[1768483781767,5.07362504,145.27,145.24,6.1984]
[1768483782067,0.04670254,145.28,145.24,6.1984]
[1768483782366,5.07376148,145.27,145.24,6.1984]
[1768483782563,0.04670254,145.28,145.24,6.1984]
[1768483782765,5.07376148,145.27,145.24,6.1984]
[1768483782964,0.04670254,145.28,145.24,6.1984]
[1768483783169,5.07376148,145.27,145.24,6.1984]
[1768483783369,0.04670254,145.28,145.24,6.1984]
[1768483783569,5.07392792,145.27,145.24,6.1984]
[1768483783769,0.04670254,145.28,145.24,6.1984]
[1768483783965,5.07362,145.27,145.24,6.1984]
[1768483784173,0.04670254,145.28,145.24,6.1984]
[1768483784466,5.07366849,145.27,145.24,6.1984]
[1768483784670,0.04670254,145.28,145.24,6.1984]
[1768483784871,5.07367,145.27,145.24,6.1984]
[1768483785171,0.04670254,145.28,145.24,6.1984]
[1768483785371,5.07356134,145.27,145.24,6.1984]
[1768483785573,0.04670254,145.28,145.24,6.1984]
[1768483785870,5.07375678,145.27,145.24,6.1984]
[1768483786061,0.04670254,145.28,145.24,6.1984]
[1768483786267,5.07388218,145.27,145.24,6.1984]
[1768483786470,0.04670254,145.28,145.24,6.1984]
[1768483786671,5.07388218,145.27,145.24,6.1984]
[1768483786971,0.04670254,145.28,145.24,6.1984]
[1768483787165,5.07388218,145.27,145.24,6.1984]
[1768483787465,0.04670254,145.28,145.24,6.1984]
[1768483787762,5.0740499,145.27,145.24,6.1984]
[1768483787961,0.04670254,145.28,145.24,6.1984]
[1768483788165,5.0740499,145.27,145.24,6.1984]
[1768483788474,0.04670254,145.28,145.24,6.1984]
[1768483788773,5.07426572,145.27,145.24,6.1984]
[1768483788968,0.04670254,145.28,145.24,6.1984]
[1768483789262,5.07426572,145.27,145.24,6.1984]
[1768483789467,0.04670254,145.28,145.24,6.1984]
[1768483789675,5.07468292,145.27,145.21,2.12532526]
[1768483789973,0.04670254,145.28,145.21,2.12532526]
[1768483790169,5.07468761,145.27,145.21,2.12532526]
[1768483790368,0.04670254,145.28,145.21,2.12532526]
[1768483790569,5.07516095,145.27,145.21,2.12532526]
[1768483790768,0.04670254,145.28,145.24,6.1984]
[1768483791076,5.07516097,145.27,145.24,6.1984]
[1768483791276,0.04670254,145.28,145.24,6.1984]
[1768483791477,5.07518748,145.27,145.24,6.1984]
[1768483791775,0.04670254,145.28,145.24,6.1984]
[1768483792075,5.07518748,145.27,145.24,6.1984]
[1768483792277,0.04670254,145.28,145.24,6.1984]
[1768483792474,5.07520198,145.27,145.24,6.1984]
[1768483792674,0.04670254,145.28,145.24,6.1984]
[1768483792876,5.07520198,145.27,145.24,6.1984]
[1768483793074,0.04670254,145.28,145.24,6.1984]
[1768483793372,5.07524398,145.27,145.24,6.1984]
[1768483793576,0.04670254,145.28,145.24,6.1984]
[1768483793783,5.07524246,145.27,145.24,6.1984]
[1768483794076,0.04670254,145.28,145.24,6.1984]
[1768483794272,5.07527031,145.27,145.24,6.1984]
[1768483794473,0.04670254,145.28,145.24,6.1984]
[1768483794680,5.07526729,145.27,145.24,6.1984]
[1768483794876,0.04670254,145.28,145.24,6.1984]
[1768483795077,5.07527182,145.27,145.24,6.1984]
[1768483795374,0.04670254,145.28,145.24,6.1984]
[1768483795571,5.04555463,145.27,145.18,12.4015]
[1768483795765,1.19838837,145.31,145.2,2.12532526]
[1768483796073,2.12532526,145.29,145.2,2.12532526]
[1768483796275,5.04555162,145.28,145.2,2.12532526]
[1768483796778,0.05096357,145.25,145.24,6.198]
[1768483797581,2.12532526,145.29,145.24,6.198]
[1768483797782,5.04563051,145.28,145.24,6.198]
[1768483798085,2.12532526,145.29,145.24,6.198]
[1768483798086,5.04563051,145.27,145.24,6.198]
[1768483798277,2.12532526,145.29,145.24,6.198]
[1768483798477,5.04567667,145.28,145.24,6.198]
[1768483798681,5.09028534,145.27,145.24,6.198]
[1768483798883,0.04460867,145.27,145.24,6.198]
[1768483799180,0.04460867,145.27,145.24,6.2507586]
[1768483801785,1.19838837,145.31,145.26,6.1976]
[1768483801981,5.0453255,145.3,145.26,2.12532526]
[1768483802285,2.12532526,145.36,145.27,6.1968]
[1768483802286,1.19826458,145.34,145.27,6.1968]
[1768483802485,5.0408921,145.33,145.27,6.1968]
[1768483802680,7.16621736,145.32,145.21,15.3992]
[1768483802986,5.0408921,145.31,145.25,0.05241723]
[1768483803284,2.12532526,145.3,145.25,0.05241723]
[1768483803485,5.08696505,145.29,145.21,2.12532526]
[1768483803685,5.0408921,145.28,145.17,15.4022]
[1768483803887,5.0408921,145.28,145.2,2.12532526]
[1768483804090,5.0408921,145.27,145.2,2.12532526]
[1768483804386,2.12532526,145.3,145.2,2.12532526]
[1768483804686,0.04558729,145.25,145.22,0.05000211]
[1768483804887,0.04558729,145.25,145.23,6.1985]
[1768483805382,6.1951,145.32,145.24,6.1984]
[1768483805686,7.16732399,145.31,145.24,6.1984]
[1768483805886,5.04199873,145.3,145.24,6.1984]
[1768483807882,5.04199873,145.3,145.22,2.12532526]
[1768483809691,5.04199873,145.3,145.17,3.0]
[1768483809888,2.12532526,145.29,145.21,2.12532526]
[1768483810182,2.12532526,145.29,145.14,8.53827708]
[1768483810183,5.04199873,145.28,145.14,8.53827708]
[1768483810392,7.16732399,145.27,145.18,2.12532526]
[1768483810592,5.04199873,145.26,145.11,8.53827708]
[1768483810890,2.12532526,145.25,145.16,2.12532526]
[1768483811189,5.04199873,145.24,145.16,2.12532526]
[1768483811389,0.04348076,145.22,145.19,0.05225537]
[1768483811579,3.3229191,145.27,145.14,3.3229191]
[1768483811781,0.04601077,145.22,145.19,0.04597144]
[1768483811979,0.04601077,145.22,145.11,8.53827708]
[1768483812184,3.3229191,145.25,145.09,8.53827708]
[1768483812386,5.03931005,145.24,145.12,3.3229191]
[1768483812590,3.3229191,145.2,145.05,8.53827708]
[1768483812790,5.03931005,145.19,145.08,3.3229191]
[1768483812986,0.04425155,145.15,145.12,0.04668773]
[1768483813691,0.04425155,145.15,145.07,6.2055]
[1768483813988,0.04425155,145.15,145.06,3.3229191]
[1768483813989,3.3229191,145.18,145.06,3.3229191]
[1768483814792,0.05237836,145.13,145.06,3.3229191]
[1768483815394,0.05237836,145.13,145.08,3.3229191]
[1768483815687,81.38,145.19,145.08,3.3229191]
[1768483815890,0.04845473,145.15,145.08,3.3229191]
[1768483816097,0.04845473,145.15,145.12,0.04801966]
[1768483816595,0.04845473,145.15,145.08,3.3229191]
[1768483816784,0.04845473,145.15,145.05,3.3229191]
[1768483816987,90.9241191,145.18,145.05,3.3229191]
[1768483817186,84.7229191,145.18,145.05,3.3229191]
[1768483817391,6.2015,145.17,145.05,3.3229191]
[1768483817593,0.04919646,145.13,145.05,3.3229191]
[1768483819199,0.04919646,145.13,145.07,3.3229191]
[1768483821403,0.04919646,145.13,145.09,0.04406205]
[1768483831599,81.44,145.16,145.09,0.04406205]
[1768483832105,81.44,145.17,145.09,0.04406205]
[1768483832307,81.44,145.17,145.08,3.3229191]
[1768483832806,0.04720682,145.14,145.08,3.3229191]
[1768483833404,0.04720682,145.14,145.1,0.04490327]
[1768483840106,0.04720682,145.14,145.04,3.3229191]
[1768483840411,84.7629191,145.16,145.04,3.3229191]
[1768483840914,90.9648191,145.16,145.01,350.37524172]
[1768483841111,90.9648191,145.16,145.03,3.3229191]
[1768483841306,0.05293107,145.1,145.03,3.3229191]
[1768483842310,0.05293107,145.1,145.05,0.0454968]
[1768483843015,0.05293107,145.1,145.08,6.2052]
[1768483843505,0.05293107,145.1,145.05,0.0454968]
[1768483844017,0.05293107,145.1,145.07,6.2056]
[1768483845013,3.3229191,145.15,145.08,6.2052]
[1768483845206,3.3229191,145.17,145.03,3.3229191]
[1768483845513,81.44,145.17,145.11,6.2038]
[1768483846319,0.0521052,145.15,145.11,6.2038]
[1768483846805,0.0521052,145.15,145.12,0.05259508]
[1768483847113,0.0521052,145.15,145.11,6.2038]
[1768483847512,1.38,145.14,145.02,3.3229191]
[1768483847715,3.3229191,145.09,144.95,3.3229191]
[1768483848014,3.3229191,145.07,144.95,3.3229191]
[1768483848410,0.05094482,145.02,144.97,6.2099]
[1768483848911,0.05094482,145.02,144.99,6.2091]
[1768483850917,0.05094482,145.02,144.91,87.58]
[1768483850918,0.05094482,145.02,144.93,3.3229191]
[1768483851123,3.3229191,145.07,144.94,3.3229191]
[1768483852614,0.05126187,145.02,144.94,3.3229191]
[1768483853119,0.05126187,145.02,144.91,3.3229191]
[1768483853319,3.3229191,145.04,144.91,3.3229191]
[1768483853712,0.04968793,144.99,144.91,3.3229191]
[1768483854112,0.04968793,144.99,144.93,3.3229191]
[1768483854311,84.7829191,145.05,144.93,3.3229191]
[1768483854518,0.04596619,144.97,144.93,3.3229191]
[1768483854715,84.7829191,145.05,144.93,3.3229191]
[1768483855517,3.3229191,145.05,144.93,3.3229191]
[1768483855722,84.8029191,145.05,144.91,3.3229191]
[1768483855928,91.0096191,145.05,144.91,3.3229191]
[1768483856123,0.04767366,144.99,144.91,3.3229191]
[1768483856719,0.04767366,144.99,144.89,3.3229191]
[1768483856916,3.3229191,145.01,144.89,3.3229191]
[1768483857118,0.04470927,144.95,144.93,0.04525646]
[1768483857316,3.3229191,145.01,144.93,0.04525646]
[1768483857517,0.04451896,144.95,144.93,0.04525646]
[1768483857716,3.3229191,145.01,144.93,0.04525646]
[1768483857917,0.04962593,144.95,144.93,0.04525646]
[1768483858118,0.04914124,144.98,144.93,0.04525646]
[1768483859225,0.04914124,144.98,144.93,3.36817556]
[1768483859423,0.04914124,144.98,144.93,0.04525646]
[1768483860723,0.04914124,144.98,144.88,3.3229191]
[1768483860927,3.3229191,145.01,144.88,3.3229191]
[1768483861429,3.3229191,144.99,144.87,3.3229191]
[1768483861619,3.3229191,144.99,144.78,8.53827708]
[1768483861620,3.3229191,144.97,144.86,3.3229191]
[1768483861923,0.04528427,144.93,144.84,3.3229191]
[1768483862125,3.3229191,144.97,144.84,3.3229191]
[1768483862329,0.04790326,144.9,144.84,3.3229191]
[1768483862520,0.04790326,144.9,144.85,3.3229191]
[1768483862720,3.3229191,144.97,144.85,3.3229191]
[1768483863022,0.05194015,144.89,144.86,0.0492355]
[1768483863326,3.3229191,144.97,144.83,3.3229191]
[1768483864228,0.04962627,144.91,144.83,3.3229191]
[1768483864432,0.04962627,144.91,144.89,0.0510234]
[1768483864724,0.04962627,144.91,144.83,3.3229191]
[1768483864929,0.04962627,144.91,144.8,20.68]
[1768483865132,3.3229191,144.97,144.84,3.3229191]
[1768483865321,87.709,145.0,144.86,3.3229191]
[1768483865523,84.8229191,145.0,144.89,0.04450193]
[1768483865830,84.8229191,145.0,144.86,3.3229191]
[1768483866430,0.0471632,144.94,144.92,0.04655868]
[1768483866630,84.8229191,145.0,144.92,0.04655868]
[1768483866832,0.04379493,144.94,144.86,3.3229191]
[1768483867033,3.3229191,144.98,144.86,3.3229191]
[1768483867929,0.04409351,144.93,144.91,0.04812063]
[1768483868129,3.3229191,144.98,144.86,3.3229191]
[1768483869225,0.05026094,144.93,144.86,3.3229191]
[1768483869731,3.3229191,145.02,144.88,3.37041347]
[1768483869927,3.3229191,145.02,144.9,3.3229191]
[1768483870936,0.05202648,144.97,144.9,3.3229191]
[1768483871233,0.05202648,144.97,144.83,3.3229191]
[1768483871423,2.13402347,144.99,144.9,2.13402347]
[1768483871824,2.13402347,144.99,144.79,1.20128413]
[1768483872137,2.13402347,144.97,144.89,2.13402347]
[1768483872340,2.13402347,144.97,144.88,2.13402347]
[1768483872730,2.13402347,144.98,144.88,2.13402347]
[1768483872929,0.04715068,144.94,144.91,0.04463977]
[1768483873536,0.04715068,144.94,144.88,2.13402347]
[1768483876143,0.04715068,144.94,144.81,20.68]
[1768483876445,2.13402347,144.96,144.87,2.13402347]
[1768483876844,6.2097,144.98,144.87,2.13402347]
[1768483877144,2.13402347,144.96,144.87,2.13402347]
[1768483877648,0.04983562,144.93,144.81,20.68]
[1768483877945,2.13402347,144.96,144.81,20.68]
[1768483878145,2.13402347,144.96,144.87,2.13402347]
[1768483878946,2.13402347,144.94,144.85,2.13402347]
[1768483879138,0.04426996,144.91,144.85,2.13402347]
[1768483880045,0.04426996,144.91,144.8,81.52]
[1768483880046,0.04426996,144.91,144.83,2.13402347]
[1768483880242,2.13402347,144.92,144.87,0.04829338]
[1768483880547,0.04689061,144.88,144.82,2.13402347]
[1768483880738,2.13402347,144.92,144.77,272.91255955]
[1768483880934,2.13402347,144.92,144.83,2.13402347]
[1768483881137,2.13402347,144.92,144.78,20.68]
[1768483881339,2.13402347,144.92,144.83,2.13402347]
[1768483881846,2.13402347,144.92,144.86,0.04417858]
[1768483882853,0.04873134,144.9,144.86,0.04417858]
[1768483883048,2.13402347,144.93,144.86,0.04417858]
[1768483883349,2.13402347,144.93,144.83,2.13402347]
[1768483884057,2.13402347,144.93,144.78,20.68]
[1768483884247,0.04389577,144.89,144.87,0.04412799]
[1768483884444,2.13402347,144.91,144.87,0.04934729]
[1768483884649,2.18080935,144.89,144.8,2.13402347]
[1768483884849,2.13402347,144.9,144.8,2.13402347]
[1768483885453,2.13402347,144.9,144.78,20.68]
[1768483885753,0.05143903,144.85,144.83,0.04404616]
[1768483885939,2.13402347,144.88,144.78,2.13402347]
[1768483886142,2.13402347,144.88,144.77,271.71106804]
[1768483886143,2.13402347,144.88,144.83,0.04591525]
[1768483886352,96.6175,144.95,144.83,0.04591525]
[1768483886353,0.04652501,144.84,144.83,0.04591525]
[1768483886556,2.13402347,144.87,144.77,273.84509151]
[1768483886851,6.2121,144.93,144.81,0.04679031]
[1768483887055,2.13402347,144.89,144.77,271.71106804]
[1768483887349,2.13402347,144.89,144.78,2.13402347]
[1768483887552,2.13402347,144.87,144.78,2.13402347]
[1768483887944,0.05101985,144.84,144.81,0.04523012]
[1768483888952,2.13402347,144.83,144.77,190.17106804]
[1768483890957,2.13402347,144.79,144.65,15.95950245]
[1768483891151,0.05101985,144.84,144.7,2.13402347]
[1768483891350,96.6449,144.91,144.74,2.13402347]
[1768483891550,2.13402347,144.85,144.76,0.04478462]
[1768483891860,2.13402347,144.83,144.74,2.13402347]
[1768483892159,2.13402347,144.83,144.67,21.88250868]
[1768483892353,2.13402347,144.83,144.73,2.13402347]
[1768483892756,0.05144327,144.79,144.77,0.0469219]
[1768483893465,0.05144327,144.79,144.72,2.13402347]
[1768483893758,2.13402347,144.81,144.71,2.13402347]
[1768483893957,6.2157,144.84,144.71,2.13402347]
[1768483894151,96.6571,144.89,144.73,2.13402347]
[1768483894350,86.66050616,144.88,144.75,2.13402347]
[1768483894546,0.04831386,144.82,144.75,2.13402347]
[1768483894954,0.04831386,144.82,144.77,0.04493305]
[1768483895969,6.2137,144.89,144.77,0.04493305]
[1768483896256,6.2137,144.89,144.67,1.20250868]
[1768483896257,2.13402347,144.87,144.78,2.13402347]
[1768483896461,2.13402347,144.87,144.68,20.68]
[1768483896656,2.13402347,144.88,144.79,2.13402347]
[1768483897162,0.05243109,144.85,144.82,0.05270458]
[1768483897363,2.13402347,144.88,144.78,2.13402347]
[1768483897563,0.04847143,144.85,144.82,0.04514187]
[1768483897760,0.04847143,144.85,144.74,81.56]
[1768483898063,2.13402347,144.89,144.8,2.13402347]
[1768483898463,96.6204,144.95,144.8,2.13402347]
[1768483898662,2.13402347,144.9,144.8,2.13402347]
[1768483898859,2.18684323,144.88,144.79,2.13402347]
[1768483899060,2.13402347,144.88,144.78,2.13402347]
[1768483899661,2.13402347,144.88,144.74,81.56]
[1768483899859,2.13402347,144.85,144.76,2.13402347]
[1768483900459,2.13402347,144.85,144.69,81.56]
[1768483900762,2.13402347,144.86,144.76,2.13402347]
[1768483901166,0.05107514,144.82,144.76,2.13402347]
[1768483901356,0.05107514,144.82,144.73,5.4540002]
[1768483901552,6.214,144.88,144.73,5.4540002]
[1768483901766,6.2144,144.87,144.73,5.4540002]
[1768483902363,0.05208102,144.81,144.73,5.4540002]
[1768483902860,0.05208102,144.81,144.76,0.04538437]
[1768483903066,11.6677002,144.89,144.76,0.04538437]
[1768483903266,11.6677002,144.89,144.73,5.4540002]
[1768483904064,0.04729237,144.82,144.8,0.04462157]
[1768483904259,6.2139,144.88,144.73,5.4540002]
[1768483905465,0.04957478,144.82,144.79,0.05047462]
[1768483905666,6.2139,144.88,144.73,5.4540002]
[1768483905867,0.0456169,144.82,144.79,0.05293921]
[1768483906055,6.2139,144.88,144.72,5.4540002]
[1768483906256,0.052214,144.82,144.7,5.4540002]
[1768483906571,5.4540002,144.86,144.7,5.4540002]
[1768483907368,0.0492472,144.79,144.7,5.4540002]
[1768483907561,6.2153,144.85,144.7,5.4540002]
[1768483907966,6.2153,144.85,144.76,0.0528458]
[1768483908269,5.4540002,144.86,144.7,5.4540002]
[1768483908663,11.6688002,144.86,144.7,5.4540002]
[1768483908863,0.05023763,144.79,144.77,0.04924675]
[1768483909059,11.6688002,144.86,144.7,5.4540002]
[1768483910166,0.05165548,144.79,144.7,5.4540002]
[1768483910362,11.6688002,144.86,144.7,5.4540002]
[1768483910566,11.6688002,144.86,144.77,0.05059244]
[1768483910766,11.6688002,144.86,144.7,5.4540002]
[1768483911769,0.05296913,144.79,144.77,0.04562097]
[1768483911969,11.6688002,144.86,144.7,5.4540002]
[1768483912169,0.05002949,144.79,144.7,5.4540002]
[1768483912370,11.6688002,144.86,144.7,5.4540002]
[1768483913466,0.05102722,144.79,144.7,5.4540002]
[1768483913666,11.6688002,144.86,144.77,0.04857538]
[1768483913864,11.6688002,144.86,144.67,21.88250868]
[1768483913865,102.1311002,144.86,144.68,5.4540002]
[1768483914069,5.4540002,144.82,144.66,214.78592433]
[1768483914269,5.4540002,144.82,144.67,81.58]
[1768483914975,0.04919466,144.76,144.73,0.05090914]
[1768483915273,6.2168,144.82,144.67,81.58]
[1768483915666,6.2168,144.82,144.67,87.0340002]
[1768483916168,0.04639897,144.76,144.67,5.4540002]
[1768483916474,0.04451614,144.73,144.66,290.91192413]
[1768483916676,5.4540002,144.8,144.66,290.91192413]
[1768483916974,6.2183,144.78,144.66,290.91192413]
[1768483917174,0.051192,144.74,144.66,290.91192413]
[1768483918071,0.051192,144.74,144.65,15.95950245]
[1768483918277,5.4540002,144.77,144.65,15.95950245]
[1768483918475,0.04788823,144.71,144.65,15.95950245]
[1768483920976,0.04788823,144.71,144.67,0.04774593]
[1768483921194,0.04788823,144.71,144.65,15.95950245]